fUSD/lending_fUSD_20260227
["ID","MTS","AMOUNT","RATE_DAILY","PERIOD"]
[406783847,1772190642508,-277.35679052,9.916e-05,2]
[406783848,1772190642518,-961.58486559,9.918e-05,2]
[406783849,1772190642527,-3856.59986192,9.935e-05,2]
[406783850,1772190642536,-500.0,9.945e-05,2]
[406783851,1772190642546,-1618.0,9.945e-05,2]
[406783852,1772190642555,-12320.66159148,9.95e-05,2]
[406783853,1772190642565,-151.0,9.96e-05,2]
[406783854,1772190642575,-151.0,9.96e-05,2]
[406783855,1772190642587,-164.37590583,9.964e-05,2]
[406783856,1772190642597,-500.0,9.964e-05,2]
[406783857,1772190642607,-500.0,9.964e-05,2]
[406783858,1772190642617,-445.0,9.964e-05,2]
[406783859,1772190642627,-500.0,9.964e-05,2]
[406783860,1772190642636,-500.0,9.964e-05,2]
[406783861,1772190642645,-997.16350561,9.973e-05,2]
[406783862,1772190642653,-43869.9158342,0.0001,2]
[406783863,1772190642663,-1050.8052872,0.0001,2]
[406783864,1772190642672,-200.0,0.0001,2]
[406783865,1772190642682,-47727.0,0.0001,2]
[406783866,1772190642691,-218.2175256,0.0001,2]
[406783867,1772190642700,-233.11510025,0.0001,2]
[406783868,1772190642709,-1843.18097405,0.0001,2]
[406783869,1772190642718,-500.0,0.0001,2]
[406783870,1772190642727,-500.0,0.0001,2]
[406783871,1772190642739,-500.0,0.0001,2]
[406783872,1772190642748,-500.0,0.0001,2]
[406783873,1772190642758,-200.0,0.0001,2]
[406783874,1772190642767,-500.0,0.0001,2]
[406783875,1772190642777,-151.0,0.0001,2]
[406783876,1772190642786,-322.815662,0.0001,2]
[406783877,1772190642795,-500.0,0.0001,2]
[406783878,1772190642806,-151.0,0.0001,2]
[406783879,1772190642815,-500.0,0.0001,2]
[406783880,1772190642825,-151.0,0.0001,2]
[406783881,1772190642836,-322.815662,0.0001,2]
[406783882,1772190642845,-500.0,0.0001,2]
[406783883,1772190642854,-151.0,0.0001,2]
[406783884,1772190642865,-500.0,0.0001,2]
[406783885,1772190642874,-151.0,0.0001,2]
[406783886,1772190642884,-500.0,0.0001,2]
[406783887,1772190642897,-322.815662,0.0001,2]
[406783888,1772190642907,-151.0,0.0001,2]
[406783889,1772190642917,-500.0,0.0001,2]
[406783890,1772190642927,-500.0,0.0001,2]
[406783891,1772190642937,-361.292831,0.0001,2]
[406783892,1772190642947,-500.0,0.0001,2]
[406783893,1772190642957,-500.0,0.0001,2]
[406783894,1772190642966,-151.0,0.0001,2]
[406783895,1772190642975,-322.815662,0.0001,2]
[406783896,1772190642986,-500.0,0.0001,2]
[406783897,1772190642996,-151.0,0.0001,2]
[406783899,1772190643005,-361.292831,0.0001,2]
[406783901,1772190643016,-151.0,0.0001,2]
[406783902,1772190643025,-500.0,0.0001,2]
[406783903,1772190643034,-1200.0,0.0001,3]
[406783904,1772190643044,-151.0,0.0001,2]
[406783905,1772190643054,-500.0,0.0001,2]
[406783906,1772190643063,-151.0,0.0001,2]
[406783907,1772190643073,-500.0,0.0001,2]
[406783908,1772190643083,-361.292831,0.0001,2]
[406783909,1772190643092,-151.0,0.0001,2]
[406783910,1772190643102,-500.0,0.0001,2]
[406783911,1772190643111,-151.0,0.0001,2]
[406783912,1772190643120,-500.0,0.0001,2]
[406783913,1772190643129,-151.0,0.0001,2]
[406783914,1772190643139,-500.0,0.0001,2]
[406783915,1772190643148,-361.292831,0.0001,2]
[406783917,1772190643158,-151.0,0.0001,2]
[406783918,1772190643167,-500.0,0.0001,2]
[406783919,1772190643177,-151.0,0.0001,2]
[406783920,1772190643187,-500.0,0.0001,2]
[406783921,1772190643197,-500.0,0.0001,2]
[406783922,1772190643206,-151.0,0.0001,2]
[406783923,1772190643215,-151.0,0.0001,2]
[406783924,1772190643225,-151.0,0.0001,2]
[406783925,1772190643235,-151.0,0.0001,2]
[406783926,1772190643245,-151.0,0.0001,2]
[406783927,1772190643256,-151.0,0.0001,2]
[406783928,1772190643269,-151.0,0.0001,2]
[406783929,1772190643278,-151.0,0.0001,2]
[406783930,1772190643287,-151.0,0.0001,2]
[406783931,1772190643297,-151.0,0.0001,2]
[406783932,1772190643306,-151.0,0.0001,2]
[406783933,1772190643316,-151.0,0.0001,2]
[406783934,1772190643325,-151.0,0.0001,2]
[406783935,1772190643334,-151.0,0.0001,2]
[406783936,1772190643344,-151.0,0.0001,2]
[406783937,1772190643353,-151.0,0.0001,2]
[406783938,1772190643363,-151.0,0.0001,2]
[406783939,1772190643372,-151.0,0.0001,2]
[406783940,1772190643382,-160.66,0.0001,2]
[406783941,1772190643391,-151.0,0.0001,2]
[406783942,1772190643400,-322.40301155,0.0001,2]
[406783943,1772190643409,-322.40301155,0.0001,2]
[406783944,1772190643418,-500.0,0.00010018,2]
[406783945,1772190643427,-150.0,0.00010018,2]
[406783946,1772190643436,-445.0,0.00010018,2]
[406783947,1772190643445,-500.0,0.00010018,2]
[406783948,1772190643454,-4000.0,0.00010027,2]
[406783949,1772190643464,-151.0,0.00010055,2]
[406783950,1772190643473,-1203.16516,0.0001006,2]
[406783951,1772190643482,-1203.16516,0.0001006,2]
[406783952,1772190643491,-1203.16517,0.0001006,2]
[406783953,1772190643500,-1203.16516,0.0001006,2]
[406783954,1772190643509,-986.5479719,0.00010068,2]
[406783955,1772190643518,-16346.0390893,0.00010068,2]
[406783956,1772190643527,-500.0,0.00010073,2]
[406783957,1772190643537,-445.0,0.00010073,2]
[406783958,1772190643546,-500.0,0.00010073,2]
[406783959,1772190643555,-5531.0,0.000101,3]
[406783960,1772190643564,-200.0,0.000101,2]
[406783961,1772190643573,-151.0,0.0001011,2]
[406783962,1772190643584,-1511.0,0.00010115,2]
[406783963,1772190643593,-1511.0,0.00010115,2]
[406783964,1772190643603,-151.0,0.00010115,2]
[406783965,1772190643613,-151.0,0.00010115,2]
[406783966,1772190643622,-1511.0,0.00010115,2]
[406783967,1772190643632,-151.0,0.00010115,2]
[406783968,1772190643641,-151.0,0.00010115,2]
[406783969,1772190643650,-1511.0,0.00010115,2]
[406783970,1772190643659,-151.0,0.00010115,2]
[406783971,1772190643668,-151.0,0.00010115,2]
[406783972,1772190643679,-1511.0,0.00010115,2]
[406783973,1772190643688,-151.0,0.00010115,2]
[406783974,1772190643697,-1511.0,0.00010115,2]
[406783975,1772190643706,-151.0,0.00010115,2]
[406783976,1772190643715,-151.0,0.00010115,2]
[406783977,1772190643724,-1511.0,0.00010115,2]
[406783978,1772190643736,-151.0,0.00010115,2]
[406783979,1772190643746,-151.0,0.00010115,2]
[406783980,1772190643755,-1511.0,0.00010115,2]
[406783981,1772190643765,-151.0,0.00010115,2]
[406783982,1772190643775,-151.0,0.00010115,2]
[406783983,1772190643784,-1511.0,0.00010115,2]
[406783984,1772190643794,-151.0,0.00010115,2]
[406783985,1772190643806,-151.0,0.00010115,2]
[406783986,1772190643815,-1511.0,0.00010115,2]
[406783987,1772190643825,-151.0,0.00010115,2]
[406783988,1772190643834,-1511.0,0.00010115,2]
[406783989,1772190643844,-151.0,0.00010115,2]
[406783990,1772190643854,-151.0,0.00010115,2]
[406783991,1772190643863,-1511.0,0.00010115,2]
[406783992,1772190643873,-151.0,0.00010115,2]
[406783993,1772190643882,-151.0,0.00010115,2]
[406783994,1772190643892,-1511.0,0.00010115,2]
[406783995,1772190643901,-151.0,0.00010115,2]
[406783996,1772190643911,-151.0,0.00010115,2]
[406783997,1772190643920,-1511.0,0.00010115,2]
[406783998,1772190643930,-1511.0,0.00010115,2]
[406783999,1772190643940,-1511.0,0.00010115,2]
[406784000,1772190643949,-1511.0,0.00010115,2]
[406784001,1772190643958,-1511.0,0.00010115,2]
[406784002,1772190643968,-1511.0,0.00010115,2]
[406784003,1772190643977,-1511.0,0.00010115,2]
[406784004,1772190643987,-151.0,0.00010115,2]
[406784005,1772190643997,-151.0,0.00010115,2]
[406784006,1772190644007,-1511.0,0.00010115,2]
[406784007,1772190644017,-244.03346909,0.00010115,2]
[406784008,1772190644026,-151.0,0.00010115,2]
[406784009,1772190644036,-1511.0,0.00010115,2]
[406784010,1772190644046,-151.0,0.00010115,2]
[406784011,1772190644056,-250.72418667,0.00010115,2]
[406784012,1772190644066,-1511.0,0.00010115,2]
[406784013,1772190644075,-887.42293333,0.00010115,2]
[406784014,1772190644211,-151.0,0.00010115,2]
[406784015,1772190644221,-500.0,0.00010128,2]
[406784016,1772190644231,-445.0,0.00010128,2]
[406784017,1772190644241,-500.0,0.00010128,2]
[406784018,1772190644251,-160.66556425,0.00010156,2]
[406784019,1772190644261,-1203.16516,0.00010158,2]
[406784020,1772190644271,-1203.16517,0.00010158,2]
[406784021,1772190644282,-1000.0,0.00010158,2]
[406784022,1772190644292,-443.46717804,0.00010158,2]
[406784023,1772190644302,-151.0,0.00010165,2]
[406784024,1772190644312,-497.09622115,0.00010183,2]
[406784025,1772190644322,-445.0,0.00010183,2]
[406784026,1772190644331,-500.0,0.00010183,2]
[406784027,1772190644340,-166.66,0.00010189,2]
[406784028,1772190644350,-500.0,0.00010192,2]
[406784029,1772190644359,-150.0,0.00010195,2]
[406784030,1772190644368,-5531.0,0.000102,5]
[406784031,1772190644379,-150.0,0.00010205,2]
[406784032,1772190644388,-241.08852704,0.0001022,2]
[406784033,1772190644398,-151.0,0.0001022,2]
[406784034,1772190644407,-1000.0,0.00010222,2]
[406784035,1772190644417,-1000.0,0.00010236,2]
[406784036,1772190644427,-445.0,0.00010238,2]
[406784037,1772190644436,-500.0,0.00010238,2]
[406784038,1772190644445,-322.815662,0.00010245,2]
[406784039,1772190644454,-322.815662,0.00010245,2]
[406784040,1772190644464,-322.815662,0.00010245,2]
[406784041,1772190644474,-361.292831,0.00010245,2]
[406784042,1772190644483,-322.815662,0.00010245,2]
[406784043,1772190644493,-361.292831,0.00010245,2]
[406784044,1772190644502,-361.292831,0.00010245,2]
[406784045,1772190644511,-361.292831,0.00010245,2]
[406784046,1772190644520,-151.0,0.00010245,2]
[406784047,1772190644529,-151.0,0.00010245,2]
[406784048,1772190644538,-160238.5158377,0.00010245,2]
[406784049,1772190644547,-4242.8201581,0.00010245,2]
[406784050,1772190644556,-5399.3240915,0.00010246,2]
[406784051,1772190644565,-151.0,0.00010275,2]
[406784052,1772190644575,-4000.0,0.00010278,2]
[406784053,1772190644584,-445.0,0.00010292,2]
[406784054,1772190644595,-500.0,0.00010292,2]
[406784055,1772190644604,-1066.98996505,0.00010299,2]
[406784056,1772190644614,-227.25,0.000103,2]
[406784057,1772190644623,-150.0,0.000103,2]
[406784058,1772190644632,-1000.0,0.000103,2]
[406784059,1772190644642,-500.0,0.000103,2]
[406784060,1772190644651,-500.0,0.000103,2]
[406784061,1772190644660,-500.0,0.000103,2]
[406784062,1772190644670,-573.2974057,0.000103,2]
[406784063,1772190644679,-500.0,0.000103,2]
[406784064,1772190644688,-500.0,0.000103,2]
[406784065,1772190644697,-500.0,0.000103,2]
[406784066,1772190644706,-500.0,0.000103,2]
[406784067,1772190644715,-500.0,0.000103,2]
[406784068,1772190644725,-500.0,0.000103,2]
[406784069,1772190644738,-500.0,0.000103,2]
[406784070,1772190644747,-500.0,0.000103,2]
[406784071,1772190644757,-500.0,0.000103,2]
[406784072,1772190644767,-614.86425179,0.000103,2]
[406784073,1772190644776,-500.0,0.000103,2]
[406784074,1772190644786,-500.0,0.000103,2]
[406784075,1772190644796,-543.75451416,0.000103,2]
[406784076,1772190644807,-500.0,0.000103,2]
[406784077,1772190644816,-869.50668288,0.000103,2]
[406784078,1772190644826,-500.0,0.000103,2]
[406784079,1772190644836,-500.0,0.000103,2]
[406784080,1772190644845,-500.0,0.000103,2]
[406784081,1772190644854,-500.0,0.000103,2]
[406784082,1772190644863,-500.0,0.000103,2]
[406784083,1772190644873,-500.0,0.000103,2]
[406784084,1772190644882,-500.0,0.000103,2]
[406784085,1772190644892,-865.70277304,0.000103,2]
[406784086,1772190644901,-600.0,0.000103,2]
[406784087,1772190644912,-150.0,0.00010302,2]
[406784088,1772190644921,-158.6,0.00010304,2]
[406784089,1772190644931,-150.94414865,0.00010311,2]
[406784090,1772190644941,-1000.0,0.00010319,2]
[406784091,1772190644951,-220.1286069,0.00010323,2]
[406784092,1772190644960,-3647.2943197,0.00010323,2]
[406784093,1772190644970,-1000.0,0.00010323,2]
[406784094,1772190644979,-151.0,0.0001033,2]
[406784095,1772190644989,-350.0,0.00010333,2]
[406784096,1772190644998,-150.0,0.00010343,2]
[406784097,1772190645008,-1000.0,0.00010343,2]
[406784098,1772190645018,-445.0,0.00010347,2]
[406784099,1772190645027,-500.0,0.00010347,2]
[406784100,1772190645036,-250.0,0.00010369,2]
[406784101,1772190645045,-1000.0,0.0001037,2]
[406784102,1772190645055,-172.15967271,0.00010372,2]
[406784103,1772190645064,-151.0,0.00010385,2]
[406784104,1772190645074,-1000.0,0.00010397,2]
[406784105,1772190645083,-1819.47,0.000104,2]
[406784106,1772190645095,-445.0,0.00010402,2]
[406784107,1772190645107,-500.0,0.00010402,2]
[406784108,1772190645118,-1000.0,0.00010417,2]
[406784109,1772190645128,-1000.0,0.00010434,2]
[406784110,1772190645137,-151.0,0.0001044,2]
[406784111,1772190645147,-150.0,0.00010442,2]
[406784112,1772190645156,-1000.0,0.00010446,2]
[406784113,1772190645165,-445.0,0.00010457,2]
[406784114,1772190645175,-500.0,0.00010457,2]
[406784115,1772190645185,-799.54513345,0.00010464,2]
[406784116,1772190645195,-290.26104003,0.00010464,2]
[406784117,1772190645204,-187.78006525,0.00010464,2]
[406784118,1772190645213,-287.61899177,0.00010464,2]
[406784119,1772190645223,-3715.74,0.00010475,2]
[406784120,1772190645232,-150.99,0.00010475,2]
[406784121,1772190645242,-9999.99,0.00010475,2]
[406784122,1772190645252,-150.99,0.00010475,2]
[406784123,1772190645263,-299.99,0.00010475,2]
[406784124,1772190645272,-166.66,0.00010486,2]
[406784125,1772190645282,-151.0,0.00010495,2]
[406784126,1772190645291,-35754.0457008,0.00010504,2]
[406784127,1772190645301,-946.7011413,0.00010504,2]
[406784128,1772190645311,-1204.7520492,0.00010506,2]
[406784129,1772190645322,-445.0,0.00010512,2]
[406784130,1772190645333,-500.0,0.00010512,2]
[406784131,1772190645342,-4000.0,0.00010529,2]
[406784132,1772190645352,-200.0,0.00010548,2]
[406784133,1772190645361,-151.0,0.0001055,2]
[406784134,1772190645371,-445.0,0.00010566,2]
[406784135,1772190645380,-178.0,0.00010566,2]
[406784136,1772190645390,-500.0,0.00010575,2]
[406784137,1772190645399,-151.0,0.00010605,2]
[406784138,1772190645408,-445.0,0.00010621,2]
[406784139,1772190645417,-234.50005133,0.0001066,2]
[406784140,1772190645426,-1396.43,0.00010663,2]
[406784141,1772190645435,-445.0,0.00010676,2]
[406784142,1772190645445,-445.0,0.00010731,2]
[406784143,1772190645454,-828.0,0.00010737,2]
[406784144,1772190645464,-4000.0,0.00010779,2]
[406784145,1772190645473,-445.0,0.00010786,2]
[406784146,1772190645482,-433.0,0.00010799,2]
[406784147,1772190645491,-445.0,0.0001084,2]
[406784148,1772190645500,-1000.0,0.0001085,2]
[406784149,1772190645510,-445.0,0.00010895,2]
[406784150,1772190645520,-1850.18958404,0.000109,2]
[406784152,1772190645530,-1850.18958401,0.000109,2]
[406784153,1772190645539,-445.0,0.0001095,2]
[406784154,1772190645548,-500.0,0.00010959,2]
[406784155,1772190645557,-395.11120325,0.00010959,2]
[406784156,1772190645566,-2383.69,0.00010959,2]
[406784157,1772190645576,-150.0,0.00010959,2]
[406784158,1772190645586,-150.0,0.00010959,2]
[406784159,1772190645595,-500.0,0.00010959,2]
[406784160,1772190645605,-151.0,0.00010959,2]
[406784161,1772190645614,-151.0,0.00010959,2]
[406784162,1772190645625,-151.0,0.00010959,2]
[406784163,1772190645635,-166.66,0.00010959,2]
[406784164,1772190645644,-155.0,0.0001096,2]
[406784165,1772190645654,-151.0,0.00010999,2]
[406784166,1772190645663,-167.968716,0.00010999,2]
[406784167,1772190645672,-59748.3951557,0.00011,2]
[406784168,1772190645681,-445.0,0.00011005,2]
[406784169,1772190645691,-1050.8052872,0.00011009,2]
[406784170,1772190645700,-829.12830338,0.00011012,2]
[406784171,1772190645709,-174.05037079,0.00011012,2]
[406784172,1772190645719,-194.72792766,0.00011012,2]
[406784173,1772190645731,-298.26089446,0.00011012,2]
[406784174,1772190645740,-322.815662,0.0001103,2]
[406784175,1772190645749,-322.815662,0.0001103,2]
[406784176,1772190645759,-322.815662,0.0001103,2]
[406784177,1772190645768,-361.292831,0.0001103,2]
[406784178,1772190645778,-322.815671,0.0001103,2]
[406784179,1772190645788,-361.292831,0.0001103,2]
[406784180,1772190645799,-361.292831,0.0001103,2]
[406784181,1772190645809,-361.29283,0.0001103,2]
[406784182,1772190645818,-4000.0,0.0001103,2]
[406784183,1772190645828,-445.0,0.00011059,2]
[406784184,1772190645838,-166.66,0.00011068,2]
[406784185,1772190645847,-200.0,0.00011096,2]
[406784186,1772190645857,-2516.92470882,0.00011099,2]
[406784187,1772190645867,-2516.92470873,0.00011099,2]
[406784188,1772190645876,-2516.92470873,0.00011099,2]
[406784189,1772190645885,-27278.73292222,0.00011099,2]
[406784190,1772190645895,-27278.73292219,0.00011099,2]
[406784191,1772190645904,-27278.73292219,0.00011099,2]
[406784192,1772190645913,-27278.73292219,0.00011099,2]
[406784193,1772190645923,-27278.73292219,0.00011099,2]
[406784194,1772190645934,-151.0,0.00011099,2]
[406784195,1772190645944,-451.80649406,0.00011114,2]
[406784196,1772190645953,-166.66,0.00011178,2]
[406784197,1772190645963,-2516.92470873,0.00011203,2]
[406784198,1772190645973,-150.0,0.00011233,2]
[406784199,1772190645983,-700.0,0.00011276,2]
[406784200,1772190645992,-166.66,0.00011288,2]
[406784201,1772190646001,-183.195562,0.00011296,2]
[406784202,1772190646011,-13331.6689797,0.00011298,2]
[406784203,1772190646020,-166.66,0.00011397,2]
[406784204,1772190646029,-160.10219675,0.00011434,2]
[406784205,1772190646040,-450.07220255,0.00011437,2]
[406784206,1772190646049,-1850.18958401,0.00011459,2]
[406784207,1772190646059,-5118.29,0.00011507,2]
[406784208,1772190646068,-166.66,0.00011507,2]
[406784209,1772190646077,-918.46,0.00011507,2]
[406784210,1772190646087,-356.02,0.00011511,2]
[406784211,1772190646096,-27278.73292219,0.00011532,2]
[406784212,1772190646105,-859.80605061,0.0001156,2]
[406784213,1772190646114,-201.93286099,0.0001156,2]
[406784214,1772190646123,-309.29654756,0.0001156,2]
[406784215,1772190646132,-500.0,0.00011562,2]
[406784216,1772190646143,-200.0,0.00011644,2]
[406784217,1772190646152,-1396.43,0.00011729,2]
[406784218,1772190646267,-736.0,0.00011879,2]
[406784219,1772190646289,-1000.0,0.00011935,2]
[406784220,1772190646299,-155.0,0.00011957,2]
[406784221,1772190646308,-2516.92470873,0.00011977,2]
[406784222,1772190646317,-1050.8052872,0.00012018,2]
[406784223,1772190646327,-52754.8,0.00012055,2]
[406784224,1772190646336,-27278.73292219,0.00012062,2]
[406784225,1772190646345,-500.0,0.00012082,2]
[406784226,1772190646354,-278.240704,0.00012087,2]
[406784227,1772190646364,-9999.99,0.00012087,2]
[406784228,1772190646373,-2657.75,0.00012087,2]
[406784229,1772190646381,-29999.99,0.00012087,2]
[406784230,1772190646390,-197.77,0.00012105,2]
[406784231,1772190646399,-721.12765535,0.00012107,2]
[406784232,1772190646408,-599.60298507,0.00012107,2]
[406784233,1772190646417,-891.61887448,0.00012108,2]
[406784234,1772190646426,-209.40437684,0.00012108,2]
[406784235,1772190646435,-320.74051982,0.00012108,2]
[406784236,1772190646444,-233.84,0.00012108,2]
[406784237,1772190646453,-200.0,0.00012192,2]
[406784238,1772190646463,-9788.7013457,0.00012299,2]
[406784239,1772190646473,-200.0,0.00012486,2]
[406784240,1772190646481,-27278.73292219,0.00012592,2]
[406784241,1772190646490,-924.60877284,0.00012656,2]
[406784242,1772190646499,-217.15233878,0.00012656,2]
[406784243,1772190646508,-332.60791905,0.00012656,2]
[406784244,1772190646517,-150.0,0.00012702,2]
[406784245,1772190646526,-150.0,0.00012703,2]
[406784246,1772190646535,-150.0,0.00012704,2]
[406784247,1772190646543,-150.0,0.00012705,2]
[406784248,1772190646552,-150.0,0.00012706,2]
[406784249,1772190646561,-150.0,0.00012707,2]
[406784250,1772190646570,-150.0,0.00012708,2]
[406784251,1772190646580,-150.0,0.00012709,2]
[406784252,1772190646588,-150.0,0.0001271,2]
[406784253,1772190646597,-150.0,0.00012711,2]
[406784254,1772190646606,-2584.619468,0.0001272,2]
[406784255,1772190646615,-200.0,0.0001274,2]
[406784256,1772190646624,-1850.18958401,0.00012747,2]
[406784257,1772190646632,-2516.92470873,0.0001275,2]
[406784258,1772190646642,-1396.43,0.00012796,2]
[406784259,1772190646651,-941.785048,0.00012799,2]
[406784260,1772190646659,-2184.1544989,0.00012812,2]
[406784261,1772190646668,-356.02,0.00012833,2]
[406784262,1772190646677,-500.0,0.0001289,2]
[406784263,1772190646686,-500.0,0.0001289,2]
[406784264,1772190646695,-500.0,0.0001289,2]
[406784265,1772190646704,-500.0,0.0001289,2]
[406784266,1772190646712,-500.0,0.0001289,2]
[406784267,1772190646722,-500.0,0.0001289,2]
[406784268,1772190646732,-500.0,0.0001289,2]
[406784269,1772190646742,-500.0,0.0001289,2]
[406784270,1772190646751,-500.0,0.0001289,2]
[406784271,1772190646759,-817.37471376,0.0001289,2]
[406784272,1772190646768,-500.0,0.0001289,2]
[406784273,1772190646778,-500.0,0.0001289,2]
[406784274,1772190646787,-500.0,0.0001289,2]
[406784275,1772190646795,-500.0,0.0001289,2]
[406784276,1772190646807,-500.0,0.0001289,2]
[406784277,1772190646816,-500.0,0.0001289,2]
[406784278,1772190646825,-500.0,0.0001289,2]
[406784279,1772190646834,-500.0,0.0001289,2]
[406784280,1772190646843,-500.0,0.0001289,2]
[406784281,1772190646852,-500.0,0.0001289,2]
[406784282,1772190646861,-500.0,0.0001289,2]
[406784283,1772190646870,-500.0,0.0001289,2]
[406784284,1772190646878,-500.0,0.0001289,2]
[406784285,1772190646887,-500.0,0.0001289,2]
[406784286,1772190646895,-337.25988949,0.0001289,2]
[406784287,1772190646904,-500.0,0.0001289,2]
[406784288,1772190646913,-500.0,0.0001289,2]
[406784289,1772190646922,-500.0,0.0001289,2]
[406784290,1772190646930,-500.0,0.0001289,2]
[406784291,1772190646939,-500.0,0.0001289,2]
[406784292,1772190646948,-500.0,0.0001289,2]
[406784293,1772190646957,-500.0,0.0001289,2]
[406784294,1772190646966,-888.46058708,0.0001289,2]
[406784295,1772190646976,-500.0,0.0001289,2]
[406784296,1772190646985,-500.0,0.0001289,2]
[406784297,1772190646994,-500.0,0.0001289,2]
[406784298,1772190647003,-500.0,0.0001289,2]
[406784299,1772190647012,-500.0,0.0001289,2]
[406784300,1772190647021,-500.0,0.0001289,2]
[406784302,1772190647030,-500.0,0.0001289,2]
[406784304,1772190647039,-500.0,0.0001289,2]
[406784306,1772190647047,-500.0,0.0001289,2]
[406784308,1772190647056,-500.0,0.0001289,2]
[406784310,1772190647065,-503.2038976,0.0001289,2]
[406784312,1772190647074,-869.88788903,0.0001289,2]
[406784314,1772190647083,-500.0,0.0001289,2]
[406784316,1772190647092,-744.54912065,0.0001289,2]
[406784317,1772190647102,-563.07260655,0.0001289,2]
[406784320,1772190647111,-500.0,0.00013014,2]
[406784322,1772190647120,-1000.0,0.0001302,2]
[406784324,1772190647129,-1050.8052872,0.00013028,2]
[406784326,1772190647139,-1252.0,0.00013066,2]
[406784327,1772190647147,-27278.73292219,0.00013122,2]
[406784329,1772190647156,-958.81929743,0.00013204,2]
[406784330,1772190647166,-225.18697532,0.00013204,2]
[406784331,1772190647175,-344.91441206,0.00013204,2]
[406784332,1772190647185,-200.0,0.00013288,2]
[406784333,1772190647194,-1843.18097405,0.00013392,2]
[406784334,1772190647207,-3240.0,0.00013425,2]
[406784335,1772190647216,-4500.0,0.00013425,5]
[406784336,1772190647226,-2516.92470873,0.00013524,2]
[406784337,1772190647235,-27278.73292219,0.00013652,2]
[406784338,1772190647245,-500.0,0.00013698,2]
[406784339,1772190647254,-500.0,0.00013698,2]
[406784340,1772190647263,-500.0,0.00013698,2]
[406784341,1772190647272,-500.0,0.00013698,2]
[406784342,1772190647281,-383.3281671,0.00013698,2]
[406784343,1772190647291,-500.0,0.00013698,2]
[406784344,1772190647300,-500.0,0.00013698,2]
[406784345,1772190647310,-500.0,0.00013698,2]
[406784346,1772190647319,-500.0,0.00013698,2]
[406784347,1772190647328,-500.0,0.00013698,2]
[406784348,1772190647338,-297.82549676,0.00013698,2]
[406784349,1772190647347,-16301.24,0.00013699,2]
[406784350,1772190647356,-267.29,0.00013699,2]
[406784351,1772190647364,-151.0,0.00013699,2]
[406784352,1772190647374,-151.0,0.00013699,2]
[406784353,1772190647384,-151.0,0.00013699,2]
[406784354,1772190647393,-151.0,0.00013699,2]
[406784355,1772190647402,-151.0,0.00013699,2]
[406784356,1772190647411,-151.0,0.00013699,2]
[406784357,1772190647420,-151.0,0.00013699,2]
[406784358,1772190647430,-151.0,0.00013699,2]
[406784359,1772190647439,-151.0,0.00013699,2]
[406784360,1772190647448,-151.0,0.00013699,2]
[406784361,1772190647457,-151.0,0.00013699,2]
[406784362,1772190647466,-151.0,0.00013699,2]
[406784363,1772190647476,-151.0,0.00013699,2]
[406784364,1772190647486,-151.0,0.00013699,2]